[Event "Hungarian Youth-ch I 2024"]
[Site "Szolnok"]
[Date "2024.04.03"]
[Round "5.12"]
[White "Sass, Oscar"]
[Black "Kovacs, Kristof"]
[Result "0-1"]
[ECO "C47"]
[WhiteElo "1867"]
[BlackElo "2000"]
[Annotator "RC"]
[PlyCount "83"]
[EventDate "2024.03.31"]
[EventType "swiss"]
[EventCountry "HUN"]
[SourceTitle "playchess.com"]
[Source "ChessBase"]
[SourceQuality "1"]
[TimeControl "5400+30"]

1. e4 {[%emt 0:00:03]} e5 {[%emt 0:00:09]} 2. Nf3 {[%emt 0:00:02]} Nc6 {[%emt 0:00:11]} 3. Nc3 {[%emt 0:00:08]} Nf6 {[%emt 0:00:07]} 4. d4 {[%emt 0:00:05]} exd4 {[%emt 0:00:10]} 5. Nxd4 {[%emt 0:00:05]} Bb4 {[%emt 0:00:21]} 6. Nxc6 {[%emt 0:00:06]} bxc6 {[%emt 0:00:08]} 7. Bd3 {[%emt 0:00:04]} d5 {[%emt 0:00:23]} 8. exd5 {[%emt 0:00:05]} cxd5 {[%emt 0:00:08]} 9. O-O {[%emt 0:00:05]} O-O {[%emt 0:00:21]} 10. h3 {[%emt 0:00:09]} c6 {[%emt 0:00:21]} 11. Qf3 {[%emt 0:00:07]} h6 {[%emt 0:00:50]} 12. Bf4 {[%emt 0:00:06]} Bd6 {[%emt 0:00:50]} 13. Rfe1 {[%emt 0:00:19]} Be6 {[%emt 0:00:26]} 14. Ne2 {[%emt 0:02:06]} c5 {[%emt 0:01:31]} 15. b3 {[%emt 0:00:18]} d4 {[%emt 0:03:36]} 16. Bxd6 {[%emt 0:02:32]} Qxd6 {[%emt 0:01:04]} 17. c4 {[%emt 0:00:48]} a5 {[%emt 0:02:35]} 18. Nf4 {[%emt 0:04:13]} Bd7 {[%emt 0:03:46]} 19. Be4 {[%emt 0:06:51]} Nxe4 {[%emt 0:00:43]} 20. Qxe4 {[%emt 0:00:08]} a4 {[%emt 0:01:19]} 21. Nd3 {[%emt 0:01:49]} Rfc8 {[%emt 0:05:01]} 22. Rab1 {[%emt 0:12:33]} Qf6 {[%emt 0:02:26]} 23. Qe5 {[%emt 0:03:21]} Bf5 {[%emt 0:02:24]} 24. Rbd1 {[%emt 0:02:45]} Bxd3 {[%emt 0:01:37]} 25. Qxf6 {[%emt 0:00:55]} gxf6 {[%emt 0:00:06]} 26. Rxd3 {[%emt 0:00:03]} Rcb8 {[%emt 0:00:26]} 27. Re2 {[%emt 0:06:50]} axb3 {[%emt 0:00:31]} 28. axb3 {[%emt 0:00:06]} Ra1+ {[%emt 0:00:15]} 29. Kh2 {[%emt 0:00:27]} Rb1 {[%emt 0:00:06]} 30. Rf3 {[%emt 0:00:47]} Kg7 {[%emt 0:00:29]} 31. Rg3+ {[%emt 0:00:30]} Kf8 {[%emt 0:00:08]} 32. Rf3 {[%emt 0:00:10]} Rb6 {[%emt 0:00:08]} 33. Rf5 {[%emt 0:00:24]} Rc6 {[%emt 0:00:43]} 34. Rf3 {[%emt 0:00:11]} Rd1 {[%emt 0:00:42]} 35. Rb2 {[%emt 0:04:30]} Ke7 {[%emt 0:01:37]} 36. b4 {[%emt 0:00:54]} Rc1 {[%emt 0:00:49]} 37. b5 {[%emt 0:00:52]} Rb6 {[%emt 0:00:16]} 38. Ra2 {[%emt 0:02:12]} Rxc4 {[%emt 0:00:16]} 39. Ra7+ {[%emt 0:00:04]} Ke6 {[%emt 0:00:29]} 40. Rb3 Rb4 41. Rxb4 cxb4 {[%emt 0:01:00]} 42. Ra6 0-1

[Event "Hungarian Youth-ch I 2024"]
[Site "Szolnok"]
[Date "2024.04.03"]
[Round "5.13"]
[White "Sinoros-Szabo, Daniel"]
[Black "Horvath, Andras"]
[Result "1/2-1/2"]
[ECO "C47"]
[WhiteElo "1971"]
[BlackElo "2260"]
[Annotator "RC"]
[PlyCount "56"]
[EventDate "2024.03.31"]
[EventType "swiss"]
[EventCountry "HUN"]
[SourceTitle "playchess.com"]
[Source "ChessBase"]
[SourceQuality "1"]
[TimeControl "5400+30"]

1. e4 {[%emt 0:00:09]} e5 {[%emt 0:00:10]} 2. Nf3 {[%emt 0:00:14]} Nc6 {[%emt 0:00:09]} 3. Nc3 {[%emt 0:00:09]} Nf6 {[%emt 0:00:10]} 4. Be2 {[%emt 0:00:27]} d5 {[%emt 0:00:17]} 5. exd5 {[%emt 0:00:24]} Nxd5 {[%emt 0:00:10]} 6. O-O {[%emt 0:00:06]} Nxc3 {[%emt 0:00:08]} 7. bxc3 {[%emt 0:00:05]} Bd6 {[%emt 0:00:15]} 8. d4 {[%emt 0:00:47]} O-O {[%emt 0:00:07]} 9. Re1 {[%emt 0:00:21]} exd4 {[%emt 0:00:16]} 10. cxd4 {[%emt 0:00:06]} Bf5 {[%emt 0:00:22]} 11. Bd3 {[%emt 0:09:02]} Qf6 {[%emt 0:00:18]} 12. Bg5 {[%emt 0:04:33]} Qg6 {[%emt 0:01:06]} 13. Nh4 {[%emt 0:01:43]} Qxg5 {[%emt 0:00:06]} 14. Nxf5 {[%emt 0:00:23]} g6 {[%emt 0:00:46]} 15. Nxd6 {[%emt 0:00:58]} cxd6 {[%emt 0:00:07]} 16. c3 {[%emt 0:05:05]} Rae8 {[%emt 0:26:37]} 17. Rb1 {[%emt 0:10:22]} Qa5 {[%emt 0:05:02]} 18. Rxe8 {[%emt 0:19:56]} Rxe8 {[%emt 0:00:12]} 19. Qb3 {[%emt 0:01:23]} Re7 {[%emt 0:10:42]} 20. g3 {[%emt 0:01:37]} Kg7 {[%emt 0:11:54]} 21. a4 {[%emt 0:04:05]} Rc7 {[%emt 0:07:38]} 22. Qa3 {[%emt 0:07:06]} Qd5 {[%emt 0:04:44]} 23. Rb5 {[%emt 0:11:27]} Qf3 {[%emt 0:10:19]} 24. Qxd6 {[%emt 0:04:50]} Re7 {[%emt 0:00:18]} 25. Re5 {[%emt 0:01:36]} Nxe5 {[%emt 0:01:06]} 26. dxe5 {[%emt 0:00:17]} Re6 {[%emt 0:02:26]} 27. Qd4 {[%emt 0:00:43]} Qh5 {[%emt 0:10:58]} 28. f4 {[%emt 0:01:05]} Qd1+ {[%emt 0:05:29]} 1/2-1/2

[Event "Hungarian Youth-ch I 2024"]
[Site "Szolnok"]
[Date "2024.04.03"]
[Round "5.14"]
[White "Jokai, Bence"]
[Black "Toth, Rafael"]
[Result "1/2-1/2"]
[ECO "B44"]
[WhiteElo "1750"]
[BlackElo "1843"]
[Annotator "NA RC"]
[PlyCount "46"]
[EventDate "2024.03.31"]
[EventType "swiss"]
[EventCountry "HUN"]
[SourceTitle "playchess.com"]
[Source "ChessBase"]
[SourceQuality "1"]
[TimeControl "5400+30"]

1. e4 {[%emt 0:00:03]} c5 {[%emt 0:00:08]} 2. Nf3 {[%emt 0:00:05]} e6 {[%emt 0:00:09]} 3. d4 {[%emt 0:00:04]} cxd4 {[%emt 0:00:05]} 4. Nxd4 {[%emt 0:00:04]} Nc6 {[%emt 0:00:07]} 5. Nb5 {[%emt 0:00:12]} d6 {[%emt 0:00:07]} 6. c4 {[%emt 0:00:05]} Nf6 {[%emt 0:00:06]} 7. N1c3 {[%emt 0:00:06]} a6 {[%emt 0:00:07]} 8. Na3 {[%emt 0:00:04]} d5 {[%emt 0:00:09]} 9. exd5 {[%emt 0:02:25]} exd5 {[%emt 0:00:09]} 10. cxd5 {[%emt 0:11:38]} Nb4 {[%emt 0:00:26]} 11. Be2 {[%emt 0:02:16]} Nbxd5 {[%emt 0:04:54]} 12. Nxd5 {[%emt 0:04:39]} Qxd5 {[%emt 0:02:35]} 13. Qxd5 {[%emt 0:01:42]} Nxd5 {[%emt 0:00:09]} 14. Bf3 {[%emt 0:00:50]} Be6 {[%emt 0:02:27]} 15. O-O {[%emt 0:03:03]} Bc5 {[%emt 0:02:04]} 16. Nc2 {[%emt 0:10:32]} O-O {[%emt 0:05:10]} 17. Be3 {[%emt 0:03:30]} Nxe3 {[%emt 0:03:10]} 18. Nxe3 {[%emt 0:00:46]} Rab8 {[%emt 0:02:42]} 19. Rfd1 {[%emt 0:02:31]} b6 {[%emt 0:02:02]} 20. Nd5 {[%emt 0:09:44]} Bxd5 {[%emt 0:06:26]} 21. Rxd5 {[%emt 0:00:45]} Rbd8 {[%emt 0:01:37]} 22. Rad1 {[%emt 0:00:09]} Rxd5 {[%emt 0:00:11]} 23. Rxd5 {[%emt 0:00:10]} Re8 {[%emt 0:01:10]} 1/2-1/2

[Event "Hungarian Youth-ch I 2024"]
[Site "Szolnok"]
[Date "2024.04.03"]
[Round "5.15"]
[White "Papai, Mate"]
[Black "Hangay, Oliver"]
[Result "1/2-1/2"]
[ECO "A59"]
[WhiteElo "1887"]
[BlackElo "1962"]
[Annotator "RC"]
[PlyCount "84"]
[EventDate "2024.03.31"]
[EventType "swiss"]
[EventCountry "HUN"]
[SourceTitle "playchess.com"]
[Source "ChessBase"]
[SourceQuality "1"]
[TimeControl "5400+30"]

1. d4 {[%emt 0:00:02]} Nf6 {[%emt 0:00:11]} 2. c4 {[%emt 0:00:14]} c5 {[%emt 0:00:05]} 3. d5 {[%emt 0:00:10]} b5 {[%emt 0:00:08]} 4. cxb5 {[%emt 0:00:23]} a6 {[%emt 0:00:05]} 5. bxa6 {[%emt 0:00:20]} Bxa6 {[%emt 0:00:05]} 6. Nc3 {[%emt 0:00:07]} d6 {[%emt 0:00:07]} 7. e4 {[%emt 0:00:21]} Bxf1 {[%emt 0:00:05]} 8. Kxf1 {[%emt 0:00:05]} g6 {[%emt 0:00:13]} 9. g3 {[%emt 0:00:16]} Bg7 {[%emt 0:00:04]} 10. Kg2 {[%emt 0:00:36]} O-O {[%emt 0:00:23]} 11. Nf3 {[%emt 0:00:17]} Nbd7 {[%emt 0:00:14]} 12. Re1 {[%emt 0:00:41]} Qa5 {[%emt 0:00:12]} 13. Qe2 {[%emt 0:05:31]} Rfb8 {[%emt 0:03:53]} 14. h3 {[%emt 0:02:21]} Ne8 {[%emt 0:02:00]} 15. Qc2 {[%emt 0:05:59]} Nc7 {[%emt 0:13:58]} 16. Bg5 {[%emt 0:06:53]} Kf8 {[%emt 0:12:46]} 17. Bd2 {[%emt 0:00:58]} c4 {[%emt 0:08:50]} 18. Nd1 {[%emt 0:02:13]} Qb5 {[%emt 0:04:29]} 19. Bc3 {[%emt 0:01:48]} Nc5 {[%emt 0:04:12]} 20. Bxg7+ {[%emt 0:02:47]} Kxg7 {[%emt 0:00:05]} 21. Qc3+ {[%emt 0:00:08]} Kg8 {[%emt 0:00:47]} 22. Nd4 {[%emt 0:01:01]} Qa6 {[%emt 0:01:40]} 23. Nc6 {[%emt 0:01:34]} Re8 {[%emt 0:00:21]} 24. Ne3 {[%emt 0:14:44]} Nxe4 {[%emt 0:07:10]} 25. Qd4 {[%emt 0:01:12]} f5 {[%emt 0:12:16]} 26. f3 {[%emt 0:09:10]} Nf6 {[%emt 0:04:57]} 27. Nxe7+ {[%emt 0:03:52]} Rxe7 {[%emt 0:00:12]} 28. Qxf6 {[%emt 0:00:10]} Re5 {[%emt 0:01:26]} 29. f4 {[%emt 0:10:29]} Ree8 {[%emt 0:07:23]} 30. g4 {[%emt 0:02:29]} Rf8 {[%emt 0:02:37]} 31. Qg5 {[%emt 0:00:39]} Qb5 {[%emt 0:04:04]} 32. gxf5 {[%emt 0:02:42]} Nxd5 {[%emt 0:00:45]} 33. Kg3 {[%emt 0:04:31]} Nxe3 {[%emt 0:01:39]} 34. Rxe3 {[%emt 0:00:09]} Qxf5 {[%emt 0:01:48]} 35. Qxf5 {[%emt 0:03:04]} Rxf5 {[%emt 0:00:00]} 36. Rd1 {[%emt 0:02:07]} d5 {[%emt 0:00:42]} 37. a3 {[%emt 0:00:43]} Kf7 {[%emt 0:00:52]} 38. Rde1 {[%emt 0:00:30]} Ra7 {[%emt 0:00:42]} 39. Rd1 {[%emt 0:05:09]} Re7 {[%emt 0:00:42]} 40. Rf3 {[%emt 0:00:59]} Ke6 {[%emt 0:01:49]} 41. b3 {[%emt 0:00:26]} cxb3 {[%emt 0:00:07]} 42. Rxb3 {[%emt 0:00:02]} Rd7 {[%emt 0:00:17]} 1/2-1/2

[Event "Hungarian Youth-ch I 2024"]
[Site "Szolnok"]
[Date "2024.04.03"]
[Round "5.16"]
[White "Minga-Nagy, Abel Inti"]
[Black "Hegedus, Bernat"]
[Result "1/2-1/2"]
[ECO "B50"]
[WhiteElo "1929"]
[BlackElo "1778"]
[Annotator "RC"]
[PlyCount "87"]
[EventDate "2024.03.31"]
[EventType "swiss"]
[EventCountry "HUN"]
[SourceTitle "playchess.com"]
[Source "ChessBase"]
[SourceQuality "1"]
[TimeControl "5400+30"]

1. e4 {[%emt 0:00:16]} c5 {[%emt 0:01:25]} 2. Nf3 {[%emt 0:00:12]} d6 {[%emt 0:00:09]} 3. Nc3 {[%emt 0:00:05]} a6 {[%emt 0:00:40]} 4. g3 {[%emt 0:00:34]} g6 {[%emt 0:01:11]} 5. Bg2 {[%emt 0:00:30]} Bg7 {[%emt 0:00:29]} 6. O-O {[%emt 0:01:21]} Nf6 {[%emt 0:00:46]} 7. e5 {[%emt 0:01:31]} dxe5 {[%emt 0:01:53]} 8. Nxe5 {[%emt 0:01:38]} O-O {[%emt 0:02:12]} 9. d3 {[%emt 0:05:38]} Qc7 {[%emt 0:13:10]} 10. Re1 {[%emt 0:05:07]} Nbd7 {[%emt 0:03:06]} 11. Nc4 {[%emt 0:01:48]} Re8 {[%emt 0:04:47]} 12. Qf3 {[%emt 0:14:26]} Ra7 {[%emt 0:11:55]} 13. a4 {[%emt 0:02:39]} b6 {[%emt 0:01:07]} 14. Qc6 {[%emt 0:03:54]} Qd8 {[%emt 0:01:42]} 15. Qf3 {[%emt 0:11:55]} Bb7 {[%emt 0:02:35]} 16. Qe2 {[%emt 0:01:17]} Bxg2 {[%emt 0:03:33]} 17. Kxg2 {[%emt 0:00:44]} Nf8 {[%emt 0:07:25]} 18. Bf4 {[%emt 0:02:52]} Ne6 {[%emt 0:01:13]} 19. Be5 {[%emt 0:01:11]} Nd4 {[%emt 0:02:22]} 20. Bxd4 {[%emt 0:00:21]} cxd4 {[%emt 0:00:46]} 21. Ne4 {[%emt 0:03:36]} Nd5 {[%emt 0:02:01]} 22. Ra3 {[%emt 0:04:55]} Rd7 {[%emt 0:04:19]} 23. Rb3 {[%emt 0:02:22]} e5 {[%emt 0:07:56]} 24. c3 {[%emt 0:12:13]} f5 {[%emt 0:00:56]} 25. Ned6 {[%emt 0:00:22]} Rxd6 {[%emt 0:01:19]} 26. Nxd6 {[%emt 0:00:08]} Qxd6 {[%emt 0:00:12]} 27. cxd4 {[%emt 0:00:18]} Ne3+ {[%emt 0:04:14]} 28. fxe3 {[%emt 0:04:13]} Qd5+ {[%emt 0:00:10]} 29. Kh3 {[%emt 0:00:11]} Qxb3 {[%emt 0:00:08]} 30. dxe5 {[%emt 0:00:14]} Bxe5 {[%emt 0:00:26]} 31. e4 {[%emt 0:01:22]} Qe6 {[%emt 0:03:11]} 32. exf5 {[%emt 0:00:51]} Qxf5+ {[%emt 0:00:26]} 33. g4 {[%emt 0:00:16]} Qf4 {[%emt 0:00:33]} 34. g5 {[%emt 0:02:04]} Rf8 {[%emt 0:02:59]} 35. Qxe5 {[%emt 0:00:34]} Qxe5 {[%emt 0:01:05]} 36. Rxe5 {[%emt 0:01:13]} Rf3+ {[%emt 0:01:41]} 37. Kg2 {[%emt 0:02:15]} Rxd3 {[%emt 0:00:12]} 38. Re6 {[%emt 0:00:31]} Rd2+ {[%emt 0:00:26]} 39. Kg3 {[%emt 0:00:11]} Rxb2 {[%emt 0:00:06]} 40. a5 {[%emt 0:00:15]} bxa5 {[%emt 0:00:37]} 41. Rxa6 {[%emt 0:00:25]} Ra2 {[%emt 0:00:26]} 42. Ra8+ {[%emt 0:00:22]} Kf7 {[%emt 0:00:07]} 43. Ra7+ {[%emt 0:00:27]} Kg8 {[%emt 0:00:07]} 44. Ra8+ {[%emt 0:00:04]} 1/2-1/2

[Event "Hungarian Youth-ch I 2024"]
[Site "Szolnok"]
[Date "2024.04.03"]
[Round "5.17"]
[White "Hegedus, Zsombor"]
[Black "Meszaros-Csonka, David"]
[Result "0-1"]
[ECO "B33"]
[WhiteElo "1759"]
[BlackElo "1941"]
[Annotator "RC"]
[PlyCount "80"]
[EventDate "2024.03.31"]
[EventType "swiss"]
[EventCountry "HUN"]
[SourceTitle "playchess.com"]
[Source "ChessBase"]
[SourceQuality "1"]
[TimeControl "5400+30"]

1. e4 {[%emt 0:00:14]} c5 {[%emt 0:01:27]} 2. Nf3 {[%emt 0:00:25]} Nc6 {[%emt 0:00:07]} 3. d4 {[%emt 0:00:13]} cxd4 {[%emt 0:00:13]} 4. Nxd4 {[%emt 0:00:36]} Nf6 {[%emt 0:00:20]} 5. Nc3 {[%emt 0:00:24]} e6 {[%emt 0:00:11]} 6. Ndb5 {[%emt 0:00:48]} d6 {[%emt 0:00:20]} 7. Bf4 {[%emt 0:00:32]} e5 {[%emt 0:00:06]} 8. Bg5 {[%emt 0:00:31]} a6 {[%emt 0:00:20]} 9. Na3 {[%emt 0:00:08]} b5 {[%emt 0:00:15]} 10. Bxf6 {[%emt 0:00:34]} gxf6 {[%emt 0:00:17]} 11. Nd5 {[%emt 0:00:48]} f5 {[%emt 0:00:07]} 12. g3 {[%emt 0:00:50]} fxe4 {[%emt 0:00:09]} 13. Bg2 {[%emt 0:00:15]} Be6 {[%emt 0:00:08]} 14. Bxe4 {[%emt 0:00:28]} Bg7 {[%emt 0:00:04]} 15. Qh5 {[%emt 0:01:46]} Rc8 {[%emt 0:01:28]} 16. c3 {[%emt 0:02:43]} Ne7 {[%emt 0:00:10]} 17. Rd1 {[%emt 0:00:30]} Rc5 {[%emt 0:00:15]} 18. Nxe7 {[%emt 0:02:50]} Qxe7 {[%emt 0:00:10]} 19. Bf5 {[%emt 0:04:07]} e4 {[%emt 0:08:55]} 20. Qg4 {[%emt 0:22:50]} Bxc3+ {[%emt 0:04:36]} 21. bxc3 {[%emt 0:00:09]} Bxf5 {[%emt 0:00:08]} 22. Qg7 {[%emt 0:00:29]} Qe5 {[%emt 0:00:16]} 23. Qxe5+ {[%emt 0:00:09]} dxe5 {[%emt 0:00:03]} 24. Rd6 {[%emt 0:06:11]} Rxc3 {[%emt 0:04:54]} 25. Rxa6 {[%emt 0:00:09]} O-O {[%emt 0:06:16]} 26. O-O {[%emt 0:00:35]} Bh3 {[%emt 0:00:33]} 27. Rd1 {[%emt 0:03:46]} Rd3 {[%emt 0:06:37]} 28. Rxd3 {[%emt 0:03:37]} exd3 {[%emt 0:00:05]} 29. Rd6 {[%emt 0:00:06]} Rc8 {[%emt 0:00:15]} 30. f3 {[%emt 0:00:22]} b4 {[%emt 0:10:08]} 31. Rxd3 {[%emt 0:01:32]} bxa3 {[%emt 0:00:05]} 32. Rxa3 {[%emt 0:00:17]} Rc2 {[%emt 0:02:50]} 33. Ra8+ {[%emt 0:01:51]} Kg7 {[%emt 0:00:08]} 34. Re8 {[%emt 0:00:11]} Rg2+ {[%emt 0:00:14]} 35. Kf1 {[%emt 0:00:05]} Rxa2+ {[%emt 0:01:04]} 36. Ke1 {[%emt 0:00:09]} Kf6 {[%emt 0:01:27]} 37. Rh8 {[%emt 0:00:22]} Rxh2 {[%emt 0:00:39]} 38. g4 {[%emt 0:03:49]} e4 {[%emt 0:01:57]} 39. Rxh7 {[%emt 0:01:01]} exf3 {[%emt 0:01:42]} 40. g5+ {[%emt 0:00:37]} Kg6 {[%emt 0:00:25]} 0-1

[Event "Hungarian Youth-ch I 2024"]
[Site "Szolnok"]
[Date "2024.04.03"]
[Round "5.18"]
[White "Nagy, Norbert"]
[Black "Fan, Xiaotong"]
[Result "1/2-1/2"]
[ECO "B41"]
[WhiteElo "1629"]
[BlackElo "1731"]
[Annotator "NA RC"]
[PlyCount "99"]
[EventDate "2024.03.31"]
[EventType "swiss"]
[EventCountry "HUN"]
[SourceTitle "playchess.com"]
[Source "ChessBase"]
[SourceQuality "1"]
[TimeControl "5400+30"]

1. e4 {[%emt 0:00:01]} c5 {[%emt 0:00:03]} 2. Nf3 {[%emt 0:00:12]} e6 {[%emt 0:00:12]} 3. d4 {[%emt 0:00:44]} cxd4 {[%emt 0:00:08]} 4. Nxd4 {[%emt 0:00:05]} a6 {[%emt 0:00:04]} 5. c4 {[%emt 0:00:18]} Qc7 {[%emt 0:01:29]} 6. a3 {[%emt 0:00:38]} Nf6 {[%emt 0:01:08]} 7. Nc3 {[%emt 0:00:24]} Be7 {[%emt 0:01:09]} 8. Be3 {[%emt 0:00:47]} d6 {[%emt 0:00:36]} 9. Be2 {[%emt 0:01:02]} Nbd7 {[%emt 0:00:28]} 10. Rc1 {[%emt 0:02:45]} O-O {[%emt 0:00:57]} 11. O-O {[%emt 0:00:26]} b6 {[%emt 0:00:50]} 12. f4 {[%emt 0:00:28]} Bb7 {[%emt 0:00:14]} 13. Qc2 {[%emt 0:01:47]} Nc5 {[%emt 0:13:27]} 14. Bf3 {[%emt 0:01:17]} Rfe8 {[%emt 0:09:09]} 15. Nb3 {[%emt 0:03:46]} Nxb3 {[%emt 0:08:45]} 16. Qxb3 {[%emt 0:00:25]} Rac8 {[%emt 0:05:51]} 17. Bxb6 {[%emt 0:05:24]} Qxc4 {[%emt 0:02:50]} 18. Qxc4 {[%emt 0:01:04]} Rxc4 19. e5 {[%emt 0:00:35]} Nd7 {[%emt 0:02:08]} 20. Bxb7 {[%emt 0:00:35]} Nxb6 {[%emt 0:01:27]} 21. Bxa6 {[%emt 0:00:50]} Rd4 {[%emt 0:03:57]} 22. Rcd1 {[%emt 0:04:57]} dxe5 {[%emt 0:00:39]} 23. fxe5 {[%emt 0:03:37]} Bc5 {[%emt 0:02:03]} 24. Kh1 {[%emt 0:01:48]} Nd5 {[%emt 0:09:58]} 25. Nxd5 {[%emt 0:07:30]} exd5 {[%emt 0:00:25]} 26. b4 {[%emt 0:01:03]} Bb6 {[%emt 0:00:39]} 27. Rxd4 {[%emt 0:01:52]} Bxd4 {[%emt 0:00:16]} 28. Rd1 {[%emt 0:01:30]} Rxe5 {[%emt 0:01:26]} 29. g3 {[%emt 0:00:27]} Bb6 {[%emt 0:05:36]} 30. a4 {[%emt 0:02:11]} g6 {[%emt 0:04:43]} 31. a5 {[%emt 0:00:40]} Bf2 {[%emt 0:01:36]} 32. Kg2 {[%emt 0:01:49]} Be1 {[%emt 0:00:37]} 33. Bb7 {[%emt 0:00:53]} Bxb4 {[%emt 0:01:21]} 34. a6 {[%emt 0:00:24]} Bc5 {[%emt 0:02:51]} 35. Bxd5 {[%emt 0:01:20]} Re7 {[%emt 0:01:35]} 36. Ra1 {[%emt 0:00:49]} Kg7 {[%emt 0:01:15]} 37. Bb7 {[%emt 0:01:44]} Ba7 {[%emt 0:00:14]} 38. h4 {[%emt 0:01:43]} f6 {[%emt 0:05:26]} 39. Rc1 {[%emt 0:01:45]} Kf8 {[%emt 0:01:42]} 40. Rc6 {[%emt 0:02:27]} Kf7 {[%emt 0:00:26]} 41. Rc8 {[%emt 0:00:20]} Re8 {[%emt 0:00:17]} 42. Bd5+ {[%emt 0:00:29]} Kf8 {[%emt 0:00:26]} 43. Rc7 {[%emt 0:01:34]} Re7 {[%emt 0:00:15]} 44. Rc6 {[%emt 0:00:45]} f5 {[%emt 0:00:43]} 45. Rf6+ {[%emt 0:03:23]} Kg7 {[%emt 0:00:21]} 46. Rd6 {[%emt 0:00:44]} Kf8 {[%emt 0:00:17]} 47. Bc6 {[%emt 0:01:04]} Kf7 {[%emt 0:02:51]} 48. Rd8 {[%emt 0:00:42]} Bb6 {[%emt 0:00:13]} 49. Rc8 {[%emt 0:02:11]} Rc7 {[%emt 0:01:30]} 50. Rxc7+ 1/2-1/2

[Event "Hungarian Youth-ch I 2024"]
[Site "Szolnok"]
[Date "2024.04.03"]
[Round "5.19"]
[White "Botond, Laszlo"]
[Black "Koncz, Botond"]
[Result "1/2-1/2"]
[ECO "B40"]
[WhiteElo "1831"]
[BlackElo "1474"]
[Annotator "NA RC"]
[PlyCount "81"]
[EventDate "2024.03.31"]
[EventType "swiss"]
[EventCountry "HUN"]
[SourceTitle "playchess.com"]
[Source "ChessBase"]
[SourceQuality "1"]
[TimeControl "5400+30"]

1. e4 {[%emt 0:00:02]} c5 {[%emt 0:00:13]} 2. Nf3 {[%emt 0:00:07]} e6 {[%emt 0:00:32]} 3. Nc3 {[%emt 0:04:32]} d5 {[%emt 0:01:51]} 4. exd5 {[%emt 0:00:42]} exd5 {[%emt 0:00:22]} 5. Bb5+ {[%emt 0:01:50]} Nc6 {[%emt 0:00:52]} 6. O-O {[%emt 0:00:27]} Nf6 {[%emt 0:01:24]} 7. Re1+ {[%emt 0:02:09]} Be7 {[%emt 0:01:29]} 8. d3 {[%emt 0:01:10]} O-O {[%emt 0:01:16]} 9. Bg5 {[%emt 0:00:15]} d4 {[%emt 0:03:33]} 10. Bxf6 {[%emt 0:00:37]} Bxf6 {[%emt 0:00:51]} 11. Ne4 {[%emt 0:01:35]} Be7 {[%emt 0:02:29]} 12. Ng3 {[%emt 0:06:46]} Bd7 {[%emt 0:03:18]} 13. Re2 {[%emt 0:12:10]} Bg4 {[%emt 0:07:36]} 14. Bxc6 {[%emt 0:00:33]} bxc6 {[%emt 0:00:46]} 15. Re1 {[%emt 0:04:26]} Bd6 {[%emt 0:06:50]} 16. Ne4 {[%emt 0:01:15]} Qc7 {[%emt 0:03:38]} 17. h3 {[%emt 0:10:47]} Bh5 {[%emt 0:05:03]} 18. Kh1 {[%emt 0:03:38]} f5 {[%emt 0:07:47]} 19. Nxd6 {[%emt 0:07:28]} Qxd6 {[%emt 0:02:38]} 20. Rg1 {[%emt 0:02:33]} Qd5 {[%emt 0:07:18]} 21. c3 {[%emt 0:03:03]} dxc3 {[%emt 0:03:26]} 22. bxc3 {[%emt 0:00:13]} Rfd8 {[%emt 0:01:16]} 23. d4 {[%emt 0:01:21]} Bxf3 {[%emt 0:02:32]} 24. gxf3 {[%emt 0:01:22]} cxd4 {[%emt 0:01:20]} 25. cxd4 {[%emt 0:01:30]} Qxd4 {[%emt 0:00:41]} 26. Qxd4 {[%emt 0:00:18]} Rxd4 {[%emt 0:00:02]} 27. Rac1 {[%emt 0:00:15]} Rc8 {[%emt 0:01:17]} 28. Rc5 {[%emt 0:01:25]} Rh4 {[%emt 0:06:53]} 29. Kh2 {[%emt 0:01:26]} Ra4 {[%emt 0:02:11]} 30. Ra1 {[%emt 0:00:53]} g6 {[%emt 0:00:32]} 31. Kg2 {[%emt 0:00:23]} Kf7 {[%emt 0:02:20]} 32. Rc2 {[%emt 0:02:32]} c5 {[%emt 0:01:32]} 33. Rh1 {[%emt 0:00:30]} c4 {[%emt 0:01:30]} 34. h4 {[%emt 0:00:18]} h5 {[%emt 0:01:14]} 35. Rd1 {[%emt 0:00:29]} Rc7 {[%emt 0:01:04]} 36. Rd4 {[%emt 0:00:22]} Ke6 {[%emt 0:01:14]} 37. f4 {[%emt 0:00:54]} Kf7 {[%emt 0:02:21]} 38. Kf1 {[%emt 0:00:54]} Ke6 {[%emt 0:01:14]} 39. Ke2 {[%emt 0:00:37]} Kf7 {[%emt 0:01:40]} 40. Kf1 {[%emt 0:03:19]} Ke6 {[%emt 0:00:43]} 41. Kg2 {[%emt 0:00:25]} 1/2-1/2